Cogmind - Beta 13 @@@ ROGUE MODE // 2024.04.16 @ 16:31:45 Player: Person Guy Result: Destroyed by P-80 Master with Gamma Rifle Performance ------------- Evolutions (7) 3500 Regions Visited (16) 3200 Robots Destroyed (168) 840 Value Destroyed (6916) 6916 Prototype IDs (31) 620 Alien Tech Used (0) 0 Bonus (2019) 2019 TOTAL SCORE: 17095 Bonus ------- High Alert Combat Kills 226 Follower Combat Kills 114 Entered Garrisons 400 Used RIF Installer 500 Entered DSFs 500 Aligned with FarCom 300 Friendly Fire -21 Cogmind --------- Core Integrity 0/1300 Matter 38/300 Energy 52/100 System Corruption 7% Temperature Cool (0) Movement Rolling (90) Location -3/Garrison Parts ------- > --- POWER (2) -------- (None) > --- PROPULSION (4) --- Centrium Wheel > --- UTILITY (11) ----- Advanced Heat Sink (fused) Experimental Optical Array Advanced Signal Interpreter Improved Targeting Computer Improved Targeting Computer Advanced Targeting Computer Graphene Brace Hacking Suite > --- WEAPON (4) ------- Quantum Rifle > --- INVENTORY (5) ---- Precision Matter Filter Relay Coupler [NC] (29) Relay Coupler [NC] (30) Micro-nuke Launcher Peak State ------------ > --- POWER ------------ Antimatter Reactor Light Antimatter Reactor > --- PROPULSION ------- Armored Treads Advanced Medium Treads Armored Heavy Treads > --- UTILITY ---------- Improved Cooling System Large Storage Unit Advanced Signal Interpreter Advanced Targeting Computer Improved Kinecellerator Improved Medium Armor Plating Graphene Brace Hacking Suite System Shield Advanced System Shield > --- WEAPON ----------- Phase Gun KE Penetrator AWS/Gauss > --- INVENTORY -------- Light Antimatter Reactor Armored Treads Improved Cooling System Large Storage Unit Relay Coupler [NC] Relay Coupler [NC] Relay Coupler [NC] Relay Coupler [NC] Phase Gun Phase Gun Heavy Neutron Cannon Magnetic Acceleration Cannon Fusion Bomb Launcher Improved Remote Datajack [Rating: 117] Favorites ----------- Power Light Deuterium Engine Engine Light Deuterium Engine Power Core Fission Core Reactor Antimatter Reactor Propulsion Light Treads Treads Light Treads Leg Improved Titanium Leg Wheel Centrium Wheel Hover Unit Gravmag Array Utility Hacking Suite Device Improved Cooling System Storage Large Storage Unit Processor Advanced Targeting Computer Hackware Hacking Suite Protection Medium Armor Plating Weapon Advanced Beam Cannon Energy Gun Quantum Rifle Energy Cannon Advanced Beam Cannon Ballistic Gun Heavy Assault Rifle Ballistic Cannon Linear Accelerator Launcher Fusion Bomb Launcher Build | -11 -10 -10 -9 -9 -9 -8 -8 -7 -6 -6 -6 -5 -5 -4 -3 -3 ------- Run | Yrd Mat Min Mat Min Exi Min Mat Fac Fac Gar Fac Fac DSF Fac Res Gar Slots Evolved 14 | . . . 2 . . . 2 2 2 . . 2 . 2 2 . Power 1 | . . . . . . . . . . . . . . 1 . . Propulsion 2 | . . . 1 . . . . . . . . . . . 1 . Utility 9 | . . . 1 . . . 1 2 2 . . 1 . 1 1 . Weapon 2 | . . . . . . . 1 . . . . 1 . . . . Parts Attached 168 | 6 5 . 24 . 2 3 7 13 3 17 14 1 3 23 46 1 Power 20 | 1 1 . 4 . 1 . . 2 . 2 . . . 4 5 . Engine 8 | 1 1 . 4 . 1 . . 1 . . . . . . . . Core 3 | . . . . . . . . 1 . 1 . . . 1 . . Reactor 9 | . . . . . . . . . . 1 . . . 3 5 . Propulsion 33 | 2 . . 9 . . . 1 5 1 1 1 . . 2 11 . Treads 22 | 2 . . 9 . . . 1 1 . 1 1 . . 2 5 . Leg 5 | . . . . . . . . 4 1 . . . . . . . Wheel 2 | . . . . . . . . . . . . . . . 2 . Hover 4 | . . . . . . . . . . . . . . . 4 . Flight . | . . . . . . . . . . . . . . . . . Utility 58 | 1 2 . 4 . 1 . 4 4 2 4 12 . 3 10 11 . Device 28 | . . . 1 . 1 . 2 1 . 2 6 . 2 6 7 . Storage 3 | 1 1 . 1 . . . . . . . . . . . . . Processor 9 | . . . . . . . . . . . 3 . 1 2 3 . Hackware 11 | . . . . . . . 1 2 2 1 3 . . 1 1 . Protection 7 | . 1 . 2 . . . 1 1 . 1 . . . 1 . . Artifact . | . . . . . . . . . . . . . . . . . Weapon 57 | 2 2 . 7 . . 3 2 2 . 10 1 1 . 7 19 1 Energy Gun 10 | . . . . . . . 1 1 . 1 . . . 2 4 1 Energy Cannon 9 | . . . 4 . . 1 . 1 . 1 . 1 . 1 . . Ballistic Gun 17 | 2 2 . . . . 1 . . . 2 . . . 2 8 . Ballistic Cannon 13 | . . . 2 . . 1 1 . . 5 1 . . 1 2 . Launcher 8 | . . . 1 . . . . . . 1 . . . 1 5 . Special Weapon . | . . . . . . . . . . . . . . . . . Impact Weapon . | . . . . . . . . . . . . . . . . . Slashing Weapon . | . . . . . . . . . . . . . . . . . Piercing Weapon . | . . . . . . . . . . . . . . . . . Special Melee Weapon . | . . . . . . . . . . . . . . . . . Unidentified Prototypes 11 | . 1 . 1 . . 1 . 2 . . . . . 1 5 . Parts Lost 58 | . . . 2 . . . . . . 17 2 . . 3 34 . Power 9 | . . . . . . . . . . 2 . . . 1 6 . Propulsion 11 | . . . 1 . . . . . . 2 . . . . 8 . Utility 20 | . . . 1 . . . . . . 8 2 . . 1 8 . Weapon 18 | . . . . . . . . . . 5 . . . 1 12 . Highest Loss Streak 16 | . . . 1 . . . . . . 13 1 . . 2 16 . To Critical Strikes 1 | . . . . . . . . . . 1 . . . . . . Average Slot Usage (%) 89 | . 88 100 96 100 80 98 99 99 100 72 86 88 92 88 73 43 Engine 4 | . 14 14 10 11 11 11 9 3 . . . . . . . . Core 1 | . . . . . . . . 3 6 3 6 5 5 1 . . Reactor 1 | . . . . . . . . . . 1 . . . 7 6 . Treads 18 | . 28 28 32 33 33 33 27 19 . 3 12 11 11 9 7 . Leg 1 | . . . . . . . . 3 20 6 . . . . . . Device 10 | . . . 8 11 11 11 9 7 6 2 18 11 11 16 11 9 Storage 7 | . 14 14 11 11 11 11 9 7 6 6 6 5 5 5 2 . Processor 4 | . . . . . . . . . . . 3 11 15 10 14 23 Hackware 11 | . . . . . . . 9 22 33 25 18 17 17 15 11 4 Protection 5 | . 2 14 10 11 11 11 9 7 6 1 . . . 1 1 . Energy Gun 3 | . . . . . . . 5 1 6 5 6 5 5 5 5 1 Energy Cannon 5 | . . . 9 11 1 9 9 13 6 1 . 5 5 2 . . Ballistic Gun 4 | . 27 28 4 . . 1 . . . 2 . . . 4 5 . Ballistic Cannon 6 | . . . 7 11 1 9 12 7 6 7 12 11 11 4 . . Naked Turns . | . . . . . . . . . . . . . . . . . Heaviest Build 92 | 12 37 37 46 41 41 44 47 55 54 64 65 75 75 92 86 8 Greatest Support 118 | 40 40 40 60 60 60 60 60 60 58 75 95 95 95 95 118 16 Greatest Overweight (x) 1 | . . . . . . . . . . 1 . . . 1 1 . Average Overweight (x) . | . . . . . . . . . . . . . . . . . Largest Inventory Capacity 15 | 8 15 15 15 15 15 15 15 15 15 15 15 15 15 15 15 5 Average Capacity 14 | 6 9 15 15 15 15 15 15 15 15 15 15 15 15 15 10 5 Most Carried 15 | 4 10 10 15 14 15 15 15 15 15 14 15 13 15 15 15 5 Average Carried 11 | 1 6 10 13 13 14 13 12 12 13 10 12 13 13 13 9 4 Final Capacity 15 | 8 15 15 15 15 15 15 15 15 15 15 15 15 15 15 5 5 Final Carried 15 | 2 10 10 13 14 15 14 12 13 14 9 14 13 15 15 5 4 Class Distribution -------------------- 33% | Mutant 21% | Hacker-Gunner 19% | Hacker-Skirmisher 10% | Hacker-Tank 5% | Skirmisher 4% | Scavenger-Mutant 4% | Hacker-Mutant Dominant Class ---------------- Mutant | -10/Materials Mutant | -10/Mines Mutant | -9/Materials Mutant | -9/Mines Mutant | -9/Exiles Mutant | -8/Mines Skirmisher | -8/Materials Hacker-Skirmisher | -7/Factory Hacker-Skirmisher | -6/Factory Hacker-Skirmisher | -6/Garrison Hacker-Tank | -6/Factory Hacker-Gunner | -5/Factory Hacker-Gunner | -5/DSF Hacker-Gunner | -4/Factory Hacker-Gunner | -3/Research Mutant | -3/Garrison Resources | -11 -10 -10 -9 -9 -9 -8 -8 -7 -6 -6 -6 -5 -5 -4 -3 -3 ----------- Run | Yrd Mat Min Mat Min Exi Min Mat Fac Fac Gar Fac Fac DSF Fac Res Gar Matter Collected 4075 | 260 158 49 679 10 . 97 226 236 20 402 351 . 291 668 628 . Remotely . | . . . . . . . . . . . . . . . . . Salvage Created 7145 | . 339 75 1208 . . 219 389 407 . 542 335 . 381 2087 1163 . Parts 376 | . 26 12 69 . . 15 15 21 . 21 20 . 14 100 63 . Haulers Intercepted 11 | . 2 . 3 . . . 4 1 . . 1 . . . . . Recyclers Shooed 7 | . . . . . . . 1 . . . . . . 2 4 . Parts Field Recycled . | . . . . . . . . . . . . . . . . . Retrieved Matter . | . . . . . . . . . . . . . . . . . Parts Self-Destructed . | . . . . . . . . . . . . . . . . . Prevented . | . . . . . . . . . . . . . . . . . Kills | -11 -10 -10 -9 -9 -9 -8 -8 -7 -6 -6 -6 -5 -5 -4 -3 -3 ------- Run | Yrd Mat Min Mat Min Exi Min Mat Fac Fac Gar Fac Fac DSF Fac Res Gar Combat Hostiles Destroyed 132 | . 7 6 29 . . 6 3 7 . 11 7 . 7 29 20 . Guns 60 | . 7 6 6 . . 3 . . . 6 3 . 1 17 11 . Cannons 52 | . . . 14 . . 3 3 6 . 4 4 . 6 11 1 . AOE 16 | . . . 7 . . . . . . . . . . 1 8 . Classes Destroyed 16 | . 4 . 4 . . . 3 1 . 1 . . 2 1 . . Worker 7 | . . . . . . . 1 1 . . . . . 5 . . Builder 5 | . . . . . . . . . . . . . . 3 2 . Hauler 11 | . 2 . 3 . . . 4 1 . . 1 . . . . . Recycler 6 | . . . . . . . 1 . . . . . . 3 2 . Mechanic 2 | . . . 1 . . . . . . . . . . 1 . . Operator 3 | . 1 . 1 . . . 1 . . . . . . . . . Watcher 2 | . . . . . . . 1 . . . . . . 1 . . Swarmer 33 | . 3 6 7 . . 3 . . . . 2 . . 5 7 . Grunt 43 | . 4 . 12 . . 3 2 3 . 5 1 . 3 10 . . Brawler 3 | . . . 2 . . . . . . 1 . . . . . . Duelist 1 | . . . 1 . . . . . . . . . . . . . Sentry 18 | . . . 7 . . . 1 2 . 2 2 . . 2 2 . Specialist 5 | . . . . . . . . . . . . . 3 2 . . Hunter 9 | . . . . . . . . . . 3 . . . 2 4 . Programmer 17 | . . . . . . . . 2 . . 2 . . 6 7 . Heavy 3 | . . . . . . . . . . . . . 1 2 . . Best Kill Streak 13 | . 3 3 10 . . 2 4 4 . 3 2 . 5 13 9 . Combat Bots Only 10 | . 3 3 10 . . 2 2 4 . 3 2 . 5 10 7 . Max Kills in Single Turn 6 | . 2 1 6 . . 1 1 2 . 1 1 . 1 2 4 . Gunslinging 1 | . 1 . . . . . . . . . . . . . . . Exploded 6 | . . . 6 . . . . . . . . . . 1 3 . Melee . | . . . . . . . . . . . . . . . . . Uniques/NPCs Destroyed . | . . . . . . . . . . . . . . . . . Combat | -11 -10 -10 -9 -9 -9 -8 -8 -7 -6 -6 -6 -5 -5 -4 -3 -3 -------- Run | Yrd Mat Min Mat Min Exi Min Mat Fac Fac Gar Fac Fac DSF Fac Res Gar Hostile Shots Fired 1193 | . 14 40 143 . . 13 6 50 9 258 49 . 25 143 440 3 Missed 334 | . 3 10 31 . . 3 2 15 5 50 16 . 8 42 148 1 Damage Taken 14389 | . 133 227 1384 6 . 121 158 355 73 2792 257 . 368 2264 6207 44 Core 2052 | . . 48 178 . . . . 38 . 324 52 . . 112 1278 22 Absorbed by Shields . | . . . . . . . . . . . . . . . . . Reduced by Siege Mode 188 | . . . . . . . . . . . . . . 142 46 . Ignored by Resistances 122 | . . . . . . . . . . . 56 . 66 . . . Core Remaining (%) 84 | 100 . 80 . . . 55 100 94 . . 55 . 100 90 . . Volleys Fired 333 | . 18 16 77 . . 4 22 18 . 53 14 . 10 40 59 2 Largest 4 | . 2 2 2 . . 2 3 3 . 3 3 . 4 4 4 1 Hottest 339 | . 46 46 107 . . 107 167 177 . 200 226 . 339 339 264 94 Shots Fired 909 | . 36 32 156 1 . 28 66 54 . 116 41 . 40 175 162 2 Gun 479 | . 36 32 56 . . 20 7 3 . 48 13 . 10 104 148 2 Cannon 410 | . . . 97 1 . 8 59 51 . 63 28 . 30 68 5 . Launcher 20 | . . . 3 . . . . . . 5 . . . 3 9 . Special . | . . . . . . . . . . . . . . . . . Kinetic 542 | . 36 32 98 . . 24 37 18 . 55 28 . 20 113 81 . Thermal 347 | . . . 55 1 . 4 29 36 . 56 13 . 20 59 72 2 Explosive 15 | . . . . . . . . . . 5 . . . 3 7 . Electromagnetic 5 | . . . 3 . . . . . . . . . . . 2 . Robot Hit Streak 22 | . 8 3 11 2 . 6 12 9 . 13 9 . 17 22 14 4 Robot Miss Streak 5 | . 1 3 4 . . 2 3 3 . 5 2 . 2 3 4 . Penetration Max 1 | . . . . . . . . . . . . . . 1 1 . Secondary Targets 5 | . 2 2 1 . . . . . . . . . . . . . Max Gunslinging Chain 1 | . 1 1 1 . . . . . . . . . . . . . Autonomous 80 | . . . . . . 20 . . . . . . . 58 2 . Shots Hit Robots 595 | . 26 17 101 1 . 19 42 31 . 66 24 . 30 136 100 2 Core Hits 283 | . 13 6 41 . . 9 14 14 . 32 11 . 11 73 58 1 Critical Kills 5 | . . . 2 . . . 1 1 . 1 . . . . . . Critical Parts Destroyed 1 | . . . . . . . . . . . . . . 1 . . Critical Strikes 15 | . . . 4 . . . 1 2 . 1 1 . . 1 5 . Burn 3 | . . . . . . . . . . . . . . . 3 . Meltdown 4 | . . . 2 . . . 1 1 . . . . . . . . Destroy 2 | . . . . . . . . . . 1 . . . 1 . . Blast 6 | . . . 2 . . . . 1 . . 1 . . . 2 . Melee Attacks . | . . . . . . . . . . . . . . . . . Impact . | . . . . . . . . . . . . . . . . . Slashing . | . . . . . . . . . . . . . . . . . Piercing . | . . . . . . . . . . . . . . . . . Sneak Attacks . | . . . . . . . . . . . . . . . . . Combat Hostiles . | . . . . . . . . . . . . . . . . . Follow-up Attacks . | . . . . . . . . . . . . . . . . . Damage Inflicted 19622 | . 396 248 2341 21 . 489 939 902 . 1557 937 . 1178 5969 4576 69 Guns 8829 | . 396 248 541 . . 384 88 47 . 546 296 . 292 3192 2730 69 Cannons 7824 | . . . 1392 21 . 105 836 855 . 1011 641 . 886 1975 102 . Explosions 2945 | . . . 403 . . . 15 . . . . . . 802 1725 . Melee . | . . . . . . . . . . . . . . . . . Ramming 24 | . . . 5 . . . . . . . . . . . 19 . Kinetic 9755 | . 396 248 1098 . . 427 569 247 . 782 641 . 610 3457 1280 . Thermal 7231 | . . . 1081 21 . 62 355 655 . 775 296 . 568 1710 1639 69 Explosive 2182 | . . . . . . . 15 . . . . . . 749 1418 . Electromagnetic 430 | . . . 157 . . . . . . . . . . 53 220 . Impact . | . . . . . . . . . . . . . . . . . Slashing . | . . . . . . . . . . . . . . . . . Piercing . | . . . . . . . . . . . . . . . . . Highest Corruption 7 | . . . 3 3 3 3 . . . . . . . 1 7 7 Average Corruption 3 | . . . 2 3 3 3 . . . . . . . 1 4 7 Corruption Purged 5 | . . . . . . . . . . . . . . . 5 . Corruption Blocked . | . . . . . . . . . . . . . . . . . Effects 103 | . . . 30 9 10 4 . . . . . . . 5 38 7 Message Errors 23 | . . . 7 4 3 2 . . . . . . . . 6 1 Matter Fused 23 | . . . 8 1 4 . . . . . . . . 3 7 . Heat Flow Errors 13 | . . . 2 1 . 1 . . . . . . . 1 5 3 Energy Discharges 12 | . . . 4 . 1 . . . . . . . . 1 6 . Parts Rejected 1 | . . . . . . . . . . . . . . . 1 . Parts Fused 1 | . . . . . . . . . . . . . . . . 1 Data Loss (minor) 17 | . . . 6 1 . . . . . . . . . . 8 2 Data Loss (major) 7 | . . . 1 1 2 1 . . . . . . . . 2 . Misfires 3 | . . . 2 1 . . . . . . . . . . . . Alerts 1 | . . . . . . . . . . . . . . . 1 . Weapon Failures 2 | . . . . . . . . . . . . . . . 2 . Overload Shots . | . . . . . . . . . . . . . . . . . Overflow Damage 443 | . . . 17 . . 3 26 2 . 9 65 . 3 155 163 . Projectiles 241 | . . . 17 . . 3 26 2 . 9 65 . 3 110 6 . Explosions 202 | . . . . . . . . . . . . . . 45 157 . Melee . | . . . . . . . . . . . . . . . . . Knockbacks 29 | . . . 3 . . 1 2 3 . 7 2 . 3 7 1 . Impact . | . . . . . . . . . . . . . . . . . Kinetic 26 | . . . 3 . . 1 2 2 . 7 2 . 2 6 1 . Secondary 3 | . . . . . . . . 1 . . . . 1 1 . . Self-Inflicted Damage 209 | . . . 72 . . . 99 . . . . . . 36 2 . Shots 5 | . . . 3 . . . 1 . . . . . . 1 . . Rammed 5 | . . . 2 . . . . . . . . . . . 3 . Targets Rammed 5 | . . . 2 . . . . . . . . . . . 3 . Kicked . | . . . . . . . . . . . . . . . . . Crushed . | . . . . . . . . . . . . . . . . . Highest Temperature 423 | . 9 . 249 119 . 72 108 121 . 402 220 . 227 423 363 224 Average Temperature 85 | . 4 . 47 50 . 53 33 42 . 134 73 . 94 133 108 113 Received Heat Transfer 1428 | . 69 . 360 . . 36 36 102 . 468 48 . 51 147 111 . Effects 4 | . . . . . . . . . . 1 1 . 2 . . . Energy Bleed 1 | . . . . . . . . . . . 1 . . . . . Interference 2 | . . . . . . . . . . . . . 2 . . . Damage (minor) 1 | . . . . . . . . . . 1 . . . . . . Siege Activations 3 | . . . . . . . . . . . . . . 2 1 . Total Turns 110 | . . . . . . . . . . . . . . 91 19 . Longest Duration 48 | . . . . . . . . . . . . . . 48 19 . Robots Corrupted . | . . . . . . . . . . . . . . . . . Combat Hostiles . | . . . . . . . . . . . . . . . . . Parts Fried 1 | . . . . . . . . . . . . . . . 1 . Impact Corruptions . | . . . . . . . . . . . . . . . . . Robots Melted 5 | . . . 2 . . . 1 1 . 1 . . . . . . Combat Hostiles 4 | . . . 2 . . . . 1 . 1 . . . . . . Parts Melted 16 | . . . 3 . . . . 2 . . . . 1 5 5 . Heat Transferred 9939 | . . . 1967 37 . 111 666 962 . 903 370 . 629 1900 2320 74 Parts Sabotaged . | . . . . . . . . . . . . . . . . . Parts Stolen . | . . . . . . . . . . . . . . . . . Parts Stripped . | . . . . . . . . . . . . . . . . . Power Chain Reactions 3 | . . . 2 . . . . . . . . . . . 1 . Alert | -11 -10 -10 -9 -9 -9 -8 -8 -7 -6 -6 -6 -5 -5 -4 -3 -3 ------- Run | Yrd Mat Min Mat Min Exi Min Mat Fac Fac Gar Fac Fac DSF Fac Res Gar Peak Influence 732 | . 171 155 732 285 . 250 252 137 22 205 201 47 189 544 461 276 Initial 285 | . . . 60 285 . . 97 37 22 . 107 47 32 98 180 276 Average 194 | . 42 45 377 236 . 143 105 37 17 97 66 47 98 306 312 276 Maximum Alert Level 3 | . . . 3 1 . 1 1 . . 1 1 . . 2 2 1 Low Security (%) 60 | 100 100 100 20 24 . 77 73 100 100 86 98 100 100 36 21 . Level 1 21 | . . . 19 75 . 22 26 . . 13 1 . . 32 52 100 Level 2 18 | . . . 58 . . . . . . . . . . 30 25 . Level 3 . | . . . . . . . . . . . . . . . . . Level 4 . | . . . . . . . . . . . . . . . . . Level 5 . | . . . . . . . . . . . . . . . . . High Security . | . . . . . . . . . . . . . . . . . Max Security . | . . . . . . . . . . . . . . . . . Squads Dispatched 29 | . . . 2 . . . 1 3 . . 6 . 2 8 7 . Investigation 2 | . . . . . . . . 1 . . . . . . 1 . Extermination 10 | . . . . . . . . 2 . . 3 . . 2 3 . Reinforcement 15 | . . . 2 . . . 1 . . . 3 . 2 5 2 . Assault 1 | . . . . . . . . . . . . . . . 1 . Garrison 1 | . . . . . . . . . . . . . . 1 . . Intercept . | . . . . . . . . . . . . . . . . . Searches Triggered . | . . . . . . . . . . . . . . . . . Construction Impeded 4 | . . . 1 . . . . . . . 1 . . 1 1 . Haulers Reinforced 1 | . . . . . . . . . . . . . . 1 . . Active Scanning Responses . | . . . . . . . . . . . . . . . . . Cargo Convoy Interrupts 1 | . . . . . . . . . . . 1 . . . . . Stealth | -11 -10 -10 -9 -9 -9 -8 -8 -7 -6 -6 -6 -5 -5 -4 -3 -3 --------- Run | Yrd Mat Min Mat Min Exi Min Mat Fac Fac Gar Fac Fac DSF Fac Res Gar Distress Signals 18 | . . . 9 . . . 2 . . . 1 . . 1 5 . Communications Jammed . | . . . . . . . . . . . . . . . . . Distress Signals . | . . . . . . . . . . . . . . . . . Times Spotted 233 | . 13 6 53 . . 11 10 9 2 12 17 . 10 29 59 2 Peak Tracking Total 12 | . 3 3 12 . . 4 3 4 2 5 4 . 3 6 10 2 Tactical Retreats 16 | . . . 3 . . 3 . . . 1 1 . . 1 7 . Traps | -11 -10 -10 -9 -9 -9 -8 -8 -7 -6 -6 -6 -5 -5 -4 -3 -3 ------- Run | Yrd Mat Min Mat Min Exi Min Mat Fac Fac Gar Fac Fac DSF Fac Res Gar Traps Triggered 11 | . . . 2 . . . . 1 1 1 2 . . 1 3 . Indirectly . | . . . . . . . . . . . . . . . . . Trap Hack Attempts . | . . . . . . . . . . . . . . . . . Triggered . | . . . . . . . . . . . . . . . . . Disarmed . | . . . . . . . . . . . . . . . . . Reprogrammed . | . . . . . . . . . . . . . . . . . Reused . | . . . . . . . . . . . . . . . . . Traps Extracted . | . . . . . . . . . . . . . . . . . Installed . | . . . . . . . . . . . . . . . . . Triggered 1 | . . . . . . . . . . . 1 . . . . . Machines | -11 -10 -10 -9 -9 -9 -8 -8 -7 -6 -6 -6 -5 -5 -4 -3 -3 ---------- Run | Yrd Mat Min Mat Min Exi Min Mat Fac Fac Gar Fac Fac DSF Fac Res Gar Machines Disabled 13 | . . 1 3 . . . 1 . . 2 . . . 5 1 . Max in Single Turn 1 | . . 1 1 . . . 1 . . 1 . . . 1 1 . Garrison Access 1 | . . . . . . . . . . . . . . 1 . . Garrison Relay 1 | . . . . . . . . . . 1 . . . . . . Machines Repaired . | . . . . . . . . . . . . . . . . . Machines Dismantled . | . . . . . . . . . . . . . . . . . Machines Sabotaged . | . . . . . . . . . . . . . . . . . Overloaded Fab Kills . | . . . . . . . . . . . . . . . . . Hacking | -11 -10 -10 -9 -9 -9 -8 -8 -7 -6 -6 -6 -5 -5 -4 -3 -3 --------- Run | Yrd Mat Min Mat Min Exi Min Mat Fac Fac Gar Fac Fac DSF Fac Res Gar Machines Accessed 45 | . 5 . 5 1 . . 4 10 1 3 5 1 . 6 4 . Terminals 38 | . 5 . 5 . . . 4 9 . 3 5 1 . 5 1 . Fabricators 1 | . . . . . . . . . . . . . . . 1 . Repair Stations . | . . . . . . . . . . . . . . . . . Recycling Units . | . . . . . . . . . . . . . . . . . Scanalyzers . | . . . . . . . . . . . . . . . . . Garrison Access 5 | . . . . . . . . 1 1 . . . . 1 2 . Total Hacks 114 | . 11 . 12 1 . . 11 27 1 5 20 3 . 17 6 . Successful 60 | . 6 . 9 1 . . 4 16 1 2 8 1 . 7 5 . Failed 54 | . 5 . 3 . . . 7 11 . 3 12 2 . 10 1 . Catastrophic 12 | . 1 . . . . . 1 1 . 1 2 . . 5 1 . Database Lockouts . | . . . . . . . . . . . . . . . . . Manual 26 | . 3 . 2 . 1 . . 10 . . 5 . . 3 2 . Terminals 105 | . 11 . 12 . . . 11 25 . 5 20 3 . 16 2 . Fabricators 1 | . . . . . . . . . . . . . . . 1 . Repair Stations . | . . . . . . . . . . . . . . . . . Recycling Units . | . . . . . . . . . . . . . . . . . Scanalyzers . | . . . . . . . . . . . . . . . . . Garrison Access 7 | . . . . . . . . 2 1 . . . . 1 3 . Terminal Hacks 51 | . 5 . 8 1 . . 4 16 . 2 7 1 . 5 2 . Record 1 | . . . . . . . . . . . 1 . . . . . Robot Analysis 1 | . . . . . . . . . . . 1 . . . . . Prototype ID Bank 13 | . 2 . 5 . . . 2 4 . . . . . . . . Open Door 1 | . . . . 1 . . . . . . . . . . . . Open DSF 2 | . . . . . . . . 1 . . . 1 . . . . Level Access Points 2 | . . . . . . . . 1 . . 1 . . . . . Branch Access Points 1 | . . . 1 . . . . . . . . . . . . . Emergency Access Points 2 | . . . . . . . . . . 1 . . . . 1 . Machine Index 1 | . . . . . . . . 1 . . . . . . . . Terminal Index 2 | . . . . . . . . 1 . . 1 . . . . . Garrison Index 1 | . . . . . . . . . . . . . . 1 . . Alert Level 7 | . 1 . 1 . . . 1 4 . . . . . . . . Unreport Threat 3 | . . . . . . . 1 . . . . . . 2 . . Locate Traps 4 | . 2 . . . . . . . . . . . . 2 . . Recall Extermination 1 | . . . . . . . . . . . 1 . . . . . Recall Reinforcements 1 | . . . . . . . . . . . 1 . . . . . Registered Components 4 | . . . 1 . . . . 3 . . . . . . . . Registered Prototypes 2 | . . . . . . . . 1 . . 1 . . . . . Zone Layout 1 | . . . . . . . . . . . . . . . 1 . Garrison Registry 1 | . . . . . . . . . . 1 . . . . . . Fabricator Hacks 1 | . . . . . . . . . . . . . . . 1 . Network Status 1 | . . . . . . . . . . . . . . . 1 . Repair Station Hacks . | . . . . . . . . . . . . . . . . . Recycling Unit Hacks . | . . . . . . . . . . . . . . . . . Scanalyzer . | . . . . . . . . . . . . . . . . . Garrison Access Hacks 3 | . . . . . . . . . 1 . . . . 1 1 . Unlock Access 2 | . . . . . . . . . 1 . . . . . 1 . Seal Access 1 | . . . . . . . . . . . . . . 1 . . Unauthorized Hacks 5 | . 1 . 1 . . . . . . . 1 . . 1 1 . Terminals 4 | . 1 . 1 . . . . . . . 1 . . 1 . . Operators 4 | . 1 . 1 . . . . . . . 1 . . 1 . . Fabricators . | . . . . . . . . . . . . . . . . . Repair Stations . | . . . . . . . . . . . . . . . . . Recycling Units . | . . . . . . . . . . . . . . . . . Scanalyzers . | . . . . . . . . . . . . . . . . . Garrison Access 1 | . . . . . . . . . . . . . . . 1 . Reprogram 1 | . . . . . . . . . . . . . . . 1 . Data Cores Recovered 1 | . 1 . . . . . . . . . . . . . . . Used . | . . . . . . . . . . . . . . . . . Hacking Detections 31 | . 4 . 4 . . . 3 8 . 1 5 . . 5 1 . Full Trace Events 1 | . . . 1 . . . . . . . . . . . . . Feedback Events . | . . . . . . . . . . . . . . . . . Feedback Blocked . | . . . . . . . . . . . . . . . . . Robot Schematics Acquired . | . . . . . . . . . . . . . . . . . Robots Built . | . . . . . . . . . . . . . . . . . Authchips . | . . . . . . . . . . . . . . . . . Time . | . . . . . . . . . . . . . . . . . Total Robot Build Rating . | . . . . . . . . . . . . . . . . . Part Schematics Acquired . | . . . . . . . . . . . . . . . . . Parts Built . | . . . . . . . . . . . . . . . . . Authchips . | . . . . . . . . . . . . . . . . . Time . | . . . . . . . . . . . . . . . . . Total Part Build Rating . | . . . . . . . . . . . . . . . . . Parts Repaired . | . . . . . . . . . . . . . . . . . Time . | . . . . . . . . . . . . . . . . . Parts Recycled . | . . . . . . . . . . . . . . . . . Recycled Matter . | . . . . . . . . . . . . . . . . . Retrieved Matter . | . . . . . . . . . . . . . . . . . Retrieved Components . | . . . . . . . . . . . . . . . . . Parts Scanalyzed . | . . . . . . . . . . . . . . . . . Part Schematics Acquired . | . . . . . . . . . . . . . . . . . Parts Damaged . | . . . . . . . . . . . . . . . . . Bothacking | -11 -10 -10 -9 -9 -9 -8 -8 -7 -6 -6 -6 -5 -5 -4 -3 -3 ------------ Run | Yrd Mat Min Mat Min Exi Min Mat Fac Fac Gar Fac Fac DSF Fac Res Gar Used RIF Installer 1 | . . . . . . . . . . 1 . . . . . . Robots Hacked . | . . . . . . . . . . . . . . . . . Non-combat . | . . . . . . . . . . . . . . . . . Combat . | . . . . . . . . . . . . . . . . . Robot Hacks Applied . | . . . . . . . . . . . . . . . . . Relay Couplers Released 6 | . . . . . . . . . . 3 . . . . 3 . Machine Destruction 3 | . . . . . . . . . . 3 . . . . . . Programmers 3 | . . . . . . . . . . . . . . . 3 . Fabnet Peak Effective % . | . . . . . . . . . . . . . . . . . Robots Rewired 1 | . . . . . . . . . . . . . . 1 . . Allies Hacked . | . . . . . . . . . . . . . . . . . Hacks Repelled . | . . . . . . . . . . . . . . . . . Allies | -11 -10 -10 -9 -9 -9 -8 -8 -7 -6 -6 -6 -5 -5 -4 -3 -3 -------- Run | Yrd Mat Min Mat Min Exi Min Mat Fac Fac Gar Fac Fac DSF Fac Res Gar Total Allies 7 | . . . . 2 . . . . . . 3 . . 1 1 . Largest Group 3 | . . . . 2 2 . . . . . 3 3 3 2 1 . Highest-Rated Group 93 | . . . . 43 43 . . . . . 93 93 93 78 82 . Highest-Rated Ally 82 | . . . . 31 31 . . . . . 31 31 31 47 82 . Total Orders . | . . . . . . . . . . . . . . . . . Ally Attacks 49 | . . . . . . . . . . . 2 . 26 8 13 . Total Damage 778 | . . . . . . . . . . . 22 . 378 86 292 . Kills 2 | . . . . . . . . . . . . . . . 2 . Allies Corrupted . | . . . . . . . . . . . . . . . . . Allies Melted . | . . . . . . . . . . . . . . . . . Intel | -11 -10 -10 -9 -9 -9 -8 -8 -7 -6 -6 -6 -5 -5 -4 -3 -3 ------- Run | Yrd Mat Min Mat Min Exi Min Mat Fac Fac Gar Fac Fac DSF Fac Res Gar Robot Analysis Total 1 | . . . . . . . . . . . 1 . . . . . Derelict Logs Recovered 2 | . . 1 . 1 . . . . . . . . . . . . Drone Launches . | . . . . . . . . . . . . . . . . . Drone Recoveries . | . . . . . . . . . . . . . . . . . Exploration | -11 -10 -10 -9 -9 -9 -8 -8 -7 -6 -6 -6 -5 -5 -4 -3 -3 ------------- Run | Yrd Mat Min Mat Min Exi Min Mat Fac Fac Gar Fac Fac DSF Fac Res Gar Turns Passed 14187 | 67 851 230 2473 528 409 371 798 1484 502 939 1532 32 222 1910 1689 150 Spaces Moved 7787 | 47 477 114 1339 306 253 219 434 833 330 459 742 17 94 896 1163 64 Core 118 | 19 . . . . . . . . . . . . . . 99 . Treads 6264 | 28 477 114 1339 306 253 219 434 681 . 277 742 17 94 896 387 . Legs 664 | . . . . . . . . 152 330 182 . . . . . . Wheels 247 | . . . . . . . . . . . . . . . 183 64 Hover 494 | . . . . . . . . . . . . . . . 494 . Flight . | . . . . . . . . . . . . . . . . . Fastest Speed 50 | 50 160 160 160 160 160 160 160 126 123 123 175 175 175 157 50 90 Average Speed 149 | 115 160 160 160 160 160 160 160 153 124 160 175 175 175 159 99 90 Slowest Speed 245 | 160 160 160 160 160 160 160 160 160 126 200 180 175 175 237 245 90 Overloaded Moves . | . . . . . . . . . . . . . . . . . Propulsion Burnouts . | . . . . . . . . . . . . . . . . . Robots Hopped . | . . . . . . . . . . . . . . . . . Cave-ins Triggered . | . . . . . . . . . . . . . . . . . Exploration Rate (%) 42 | 4 78 35 83 85 67 66 45 19 13 45 21 1 93 21 33 13 Regions Visited 16 Branch Regions 4 Pre-discovered Areas . | . . . . . . . . . . . . . . . . . Known Exits Taken 8 | . . 1 1 . . . . 1 1 . 1 1 . 1 1 . Unknown Exits Taken 6 | 1 1 . . 1 1 1 1 . . . . . . . . . Scrap Searched 2 | . . 1 . 1 . . . . . . . . . . . . Spaces Dug 31 | . . . . . . . . . . 31 . . . . . . Terrain Destroyed 304 | . . . 10 . . 19 46 . . 55 9 . 7 78 80 . Melee . | . . . . . . . . . . . . . . . . . Projectile 90 | . . . 1 . . 19 4 . . 2 9 . 7 42 6 . AOE 214 | . . . 9 . . . 42 . . 53 . . . 36 74 . Terrain Rammed . | . . . . . . . . . . . . . . . . . Walls Destroyed . | . . . . . . . . . . . . . . . . . Machines Disabled . | . . . . . . . . . . . . . . . . . Actions | -11 -10 -10 -9 -9 -9 -8 -8 -7 -6 -6 -6 -5 -5 -4 -3 -3 --------- Run | Yrd Mat Min Mat Min Exi Min Mat Fac Fac Gar Fac Fac DSF Fac Res Gar Total 9715 | 60 533 130 1525 345 260 232 491 1003 423 570 946 20 131 1302 1588 156 Wait 1060 | . 7 1 28 39 . 5 15 103 75 26 147 3 7 290 225 89 Move 7771 | 46 476 113 1338 305 252 218 433 832 329 457 741 16 93 895 1163 64 Hop . | . . . . . . . . . . . . . . . . . Pick Up 209 | 8 18 . 33 1 1 1 7 20 7 11 21 . 10 25 46 . Fast Attach . | . . . . . . . . . . . . . . . . . Attach 153 | 6 4 . 22 . 2 3 6 11 3 15 13 1 3 21 42 1 Detach 11 | . . . 1 . 2 1 . . . . 1 . . 4 2 . Swap 15 | . 1 . 2 . . . 1 2 . 2 1 . . 2 4 . Drop 131 | . 9 . 22 . 3 . 7 17 4 6 8 . 8 18 29 . Fire 333 | . 18 16 77 . . 4 22 18 . 53 14 . 10 40 59 2 Melee . | . . . . . . . . . . . . . . . . . Ram 1 | . . . . . . . . . . . . . . . 1 . Kick . | . . . . . . . . . . . . . . . . . Crush 4 | . . . 2 . . . . . . . . . . . 2 . Escape Stasis 20 | . . . . . . . . . 5 . . . . . 15 . Rewire 7 | . . . . . . . . . . . . . . 7 . . Trap . | . . . . . . . . . . . . . . . . . Miscellaneous . | . . . . . . . . . . . . . . . . . Route ------- -11/Scrapyard -10/Materials (discovered 5 exits: *Mat x3 / [*Min x2]) -10/Mines (discovered 2 exits: *Mat x2) -9/Materials (discovered 4 exits: *Mat x2 / *Min / *Sto) -9/Mines (discovered 3 exits: *Mat x2 / *Exi) -9/Exiles -8/Mines -8/Materials -7/Factory (discovered 5 exits: *Fac x4 / [*Low]) -6/Factory -6/Garrison (discovered 3 exits: *Fac x3) -6/Factory (discovered 4 exits: *Fac x4) -5/Factory -5/DSF -4/Factory (discovered 2 exits: *Res / *Upp) -3/Research -3/Garrison History --------- Turn | Location | Event 2 | -11/Scrapyard | Met Revision 17 12 | -11/Scrapyard | Discovered new exit (range 15) 68 | -11/Scrapyard | Entered Materials 266 | -10/Materials | Discovered new exit (range 12) 306 | -10/Materials | Build established: Mutant 415 | -10/Materials | Discovered new exit (range 15) 509 | -10/Materials | Discovered new exit (range 9) 768 | -10/Materials | Derelicts attacked the area 786 | -10/Materials | Discovered new exit (range 13) 895 | -10/Materials | Discovered new exit (range 8) 919 | -10/Materials | Entered Mines 964 | -10/Mines | Identified exit to Materials 1105 | -10/Mines | Discovered exit to Materials (range 8) 1149 | -10/Mines | Entered Materials 1149 | -9/Materials | Evolved 2 slots: Propulsion x1, Utility x1 1563 | -9/Materials | Discovered new exit (range 16) 1850 | -9/Materials | Destroyed 10 combat bots 2054 | -9/Materials | Build established: Scavenger-Mutant 2534 | -9/Materials | Discovered new exit (range 2) 2628 | -9/Materials | Build established: Mutant 2822 | -9/Materials | Discovered new exit (range 9) 3411 | -9/Materials | Identified exit to Mines 3411 | -9/Materials | Identified exit to Storage 3622 | -9/Materials | Entered Mines 3733 | -9/Mines | Discovered new exit (range 14) 3901 | -9/Mines | Found a damaged Exp. Sensor Array with a note attached 4037 | -9/Mines | Discovered new exit (range 8) 4083 | -9/Mines | Met a Derelict who couldn't figure out how to use a Trap Extractor 4105 | -9/Mines | Deemed a non-threat by the Exiles lab entrance 4107 | -9/Mines | Discovered new exit (range 5) 4150 | -9/Mines | Entered Exiles 4150 | -9/Exiles | Accompanied by 2 allies 4180 | -9/Exiles | Led the pair of lost Derelicts to a safe place 4190 | -9/Exiles | Met 8R-AWN 4214 | -9/Exiles | Met EX-HEX 4263 | -9/Exiles | Met EX-BIN 4287 | -9/Exiles | Aligned with FarCom system 4289 | -9/Exiles | Given EX-Vault access code 4327 | -9/Exiles | Opened EX-Vault 4345 | -9/Exiles | Found Prototype Ballistic Gun 4382 | -9/Exiles | Warned to stay clear of 0b10 Research branches 4438 | -9/Exiles | Met EX-DEC 4545 | -9/Exiles | Discovered new exit (range 11) 4559 | -9/Exiles | Left Exiles lab with AWS/Gauss 4559 | -9/Exiles | Entered Mines 4559 | -8/Mines | Identified AWS/Gauss 4906 | -8/Mines | Discovered new exit (range 8) 4930 | -8/Mines | Entered Materials 4930 | -8/Materials | Evolved 2 slots: Utility x1, Weapon x1 5275 | -8/Materials | Build established: Skirmisher 5701 | -8/Materials | Discovered new exit (range 11) 5728 | -8/Materials | Entered Factory 5728 | -7/Factory | Evolved 2 slots: Utility x2 5998 | -7/Factory | Discovered new exit (range 11) 6008 | -7/Factory | Identified exit to DSF 6037 | -7/Factory | Build established: Hacker-Skirmisher 6384 | -7/Factory | Discovered new exit (range 4) 6785 | -7/Factory | Identified exit to Factory 6941 | -7/Factory | Discovered new exit (range 5) 7212 | -7/Factory | Entered another Factory area 7212 | -6/Factory | Evolved 2 slots: Utility x2 7710 | -6/Factory | Identified exit to Garrison 7714 | -6/Factory | Entered Garrison 7952 | -6/Garrison | Installed Relay Interface Framework 7960 | -6/Garrison | Discovered new exit (range 14) 8060 | -6/Garrison | Lost 13 parts (1p2n6u4w) 8159 | -6/Garrison | Found Fusion Bomb Launcher 8352 | -6/Garrison | Triggered checkpoint 8529 | -6/Garrison | Garrison Relay disabled 8556 | -6/Garrison | Discovered new exit (range 68) 8556 | -6/Garrison | Discovered new exit (range 74) 8556 | -6/Garrison | Discovered new exit (range 25) 8653 | -6/Garrison | Entered Factory 8886 | -6/Factory | Identified exit to Factory 9041 | -6/Factory | Build established: Hacker-Tank 10010 | -6/Factory | Allied Derelicts emerged from ambush trap array 10126 | -6/Factory | Build established: Hacker-Gunner 10131 | -6/Factory | Cargo convoy interrupted 10185 | -6/Factory | Entered another Factory area 10185 | -5/Factory | Accompanied by 3 allies 10185 | -5/Factory | Evolved 2 slots: Utility x1, Weapon x1 10214 | -5/Factory | Identified exit to DSF 10217 | -5/Factory | Entered DSF 10217 | -5/DSF | Accompanied by 3 allies 10300 | -5/DSF | Additional patrols routed to DSF 10382 | -5/DSF | Discovered new exit (range 16) 10439 | -5/DSF | Entered Factory 10439 | -4/Factory | Accompanied by 1 ally 10439 | -4/Factory | Evolved 2 slots: Power x1, Utility x1 11287 | -4/Factory | Garrison activated, responded to threat 11340 | -4/Factory | Destroyed 10 combat bots 11553 | -4/Factory | Discovered new exit (range 4) 11637 | -4/Factory | Identified exit to Upper Caves 12270 | -4/Factory | Discovered new exit (range 16) 12307 | -4/Factory | Identified exit to Research 12349 | -4/Factory | Entered Research 12349 | -3/Research | Evolved 2 slots: Propulsion x1, Utility x1 12901 | -3/Research | Found Prototype Launcher 12902 | -3/Research | Identified Tesla Bomb Launcher 12922 | -3/Research | Found Prototype Launcher 12923 | -3/Research | Identified Com. Tesla Bomb Launcher 12962 | -3/Research | Build established: Hacker-Tank 13301 | -3/Research | Destroyed 7 combat bots 13325 | -3/Research | Lost 16 parts (3p4n3u6w) 13692 | -3/Research | Core integrity fell below 50% 13733 | -3/Research | Build established: Hacker-Mutant 13736 | -3/Research | Lost 6 parts (1p2n1u2w) 13830 | -3/Research | Spotted B-86 Titan 13849 | -3/Research | First assault squad dispatched 13904 | -3/Research | Spotted B-86 Titan 13935 | -3/Research | Lost 3 parts (1p1u1w) 13961 | -3/Research | Core integrity fell below 20% 13975 | -3/Research | Lost 3 parts (1p1u1w) 14038 | -3/Research | Identified exit to Garrison 14038 | -3/Research | Entered Garrison 14054 | -3/Garrison | Lost 3 parts (1n2w) 14188 | -3/Garrison | Destroyed by P-80 Master with Gamma Rifle Last Messages --------------- 14023_ Lgt. Antimatter Cannon destroyed. 14023_ U-05 Engineer destroyed. 14024_ System corrupted: Heat flow error (+289). 14030_ Detecting nearby Garrison Access. 14031_ K-01 Serf collects debris. 14038_ Connecting with Garrison Access... >>Unlock Access door unlocked. 14038_ EXIT=UNLOCKED: GARRISON LOCATION=GARRISON GOAL=ESCAPE 14038_ Receiving FarCom transmissions... 14046_ U